fUST/lending_fUST_20241113
["ID","MTS","AMOUNT","RATE_DAILY","PERIOD"]
[342139302,1731501043820,-801.55,0.00020618,2]
[342139303,1731501043831,-500.0,0.00020618,2]
[342139304,1731501043840,-500.0,0.00020618,2]
[342139305,1731501043850,-500.0,0.00020618,2]
[342139306,1731501043860,-500.0,0.00020618,2]
[342139307,1731501043869,-500.0,0.00020618,2]
[342139308,1731501043881,-500.0,0.00020618,2]
[342139309,1731501043890,-500.0,0.00020618,2]
[342139310,1731501043899,-500.0,0.00020618,2]
[342139311,1731501043908,-500.0,0.00020618,2]
[342139312,1731501043922,-500.0,0.00020618,2]
[342139313,1731501043933,-500.0,0.00020618,2]
[342139314,1731501043942,-500.0,0.00020618,2]
[342139315,1731501043951,-500.0,0.00020618,2]
[342139316,1731501043960,-500.0,0.00020618,2]
[342139317,1731501043969,-500.0,0.00020618,2]
[342139318,1731501043978,-500.0,0.00020618,2]
[342139319,1731501043987,-502.37572844,0.00020618,2]
[342139320,1731501043997,-500.0,0.00020618,2]
[342139321,1731501044006,-500.0,0.00020618,2]
[342139322,1731501044015,-500.0,0.00020618,2]
[342139323,1731501044024,-154.11703894,0.00020618,2]
[342139324,1731501044033,-500.0,0.00020618,2]
[342139325,1731501044043,-506.04740335,0.00020618,2]
[342139326,1731501044052,-500.0,0.00020618,2]
[342139327,1731501044061,-816.38,0.00020618,2]
[342139328,1731501044070,-500.0,0.00020618,2]
[342139329,1731501044079,-500.0,0.00020618,2]
[342139330,1731501044088,-500.0,0.00020618,2]
[342139331,1731501044097,-500.0,0.00020618,2]
[342139332,1731501044107,-500.0,0.00020618,2]
[342139333,1731501044116,-500.0,0.00020618,2]
[342139334,1731501044127,-500.0,0.00020618,2]
[342139335,1731501044136,-531.97,0.00020618,2]
[342139336,1731501044145,-384.52958366,0.00020618,2]
[342139337,1731501044155,-975.72,0.00020618,2]
[342139338,1731501044165,-500.0,0.00020619,2]
[342139339,1731501044174,-500.0,0.00020619,2]
[342139340,1731501044183,-500.0,0.00020619,2]
[342139341,1731501044192,-584.3176116,0.00020619,2]
[342139342,1731501044202,-500.0,0.00020619,2]
[342139343,1731501044210,-500.0,0.00020619,2]
[342139344,1731501044220,-696.31,0.00020619,2]
[342139345,1731501044229,-720.52,0.00020619,2]
[342139346,1731501044238,-500.0,0.00020619,2]
[342139347,1731501044248,-500.0,0.00020619,2]
[342139348,1731501044257,-500.0,0.00020619,2]
[342139349,1731501044266,-500.0,0.00020619,2]
[342139350,1731501044276,-500.0,0.00020619,2]
[342139351,1731501044285,-500.0,0.00020619,2]
[342139352,1731501044294,-500.0,0.00020619,2]
[342139353,1731501044303,-500.0,0.00020619,2]
[342139354,1731501044313,-500.0,0.00020619,2]
[342139355,1731501044322,-500.0,0.00020619,2]
[342139356,1731501044331,-500.0,0.00020619,2]
[342139357,1731501044340,-500.0,0.00020619,2]
[342139358,1731501044349,-500.0,0.00020619,2]
[342139359,1731501044358,-1084.02,0.00020619,2]
[342139360,1731501044367,-500.0,0.00020673,2]
[342139361,1731501044377,-500.0,0.00020673,2]
[342139362,1731501044387,-500.0,0.00020673,2]
[342139363,1731501044396,-500.0,0.00020826,2]
[342139364,1731501044405,-500.0,0.00020826,2]
[342139365,1731501044414,-233.542348,0.00020881,2]
[342139366,1731501044423,-380.464927,0.00020881,2]
[342139367,1731501044434,-153.739735,0.00020881,2]
[342139368,1731501044443,-423.68925,0.00020881,2]
[342139369,1731501044453,-380.464927,0.00020881,2]
[342139370,1731501044462,-172.228931,0.00020881,2]
[342139371,1731501044471,-869.82,0.0002089,2]
[342139372,1731501044481,-602.09,0.0002089,2]
[342139373,1731501044490,-500.0,0.00020891,2]
[342139374,1731501044500,-516.16887573,0.00020891,2]
[342139375,1731501044509,-500.0,0.00020891,2]
[342139376,1731501044518,-513.51516764,0.00020891,2]
[342139377,1731501044527,-437.03449039,0.00020891,2]
[342139378,1731501044537,-500.0,0.00020891,2]
[342139379,1731501044546,-535.14,0.00020891,2]
[342139380,1731501044555,-500.0,0.00020891,2]
[342139381,1731501044565,-500.0,0.00020891,2]
[342139382,1731501044574,-1928.95,0.00020891,2]
[342139383,1731501044583,-500.0,0.00020891,2]
[342139384,1731501044593,-500.0,0.00020891,2]
[342139385,1731501044602,-500.0,0.00020891,2]
[342139386,1731501044612,-647.32,0.00020891,2]
[342139387,1731501044621,-500.0,0.00020891,2]
[342139388,1731501044632,-530.66709969,0.00020891,2]
[342139389,1731501044642,-500.0,0.00020891,2]
[342139390,1731501044651,-500.0,0.00020891,2]
[342139391,1731501044661,-500.0,0.00020891,2]
[342139392,1731501044670,-500.0,0.00020891,2]
[342139393,1731501044679,-500.0,0.00020891,2]
[342139394,1731501044688,-500.0,0.00020891,2]
[342139395,1731501044698,-500.0,0.00020891,2]
[342139396,1731501044711,-1264.78,0.00020891,2]
[342139397,1731501044722,-500.0,0.00020891,2]
[342139398,1731501044766,-500.0,0.00020891,2]
[342139399,1731501044775,-500.0,0.00020891,2]
[342139400,1731501044785,-500.0,0.00020891,2]
[342139401,1731501044795,-500.0,0.00020891,2]
[342139402,1731501044804,-500.0,0.00020891,2]
[342139403,1731501044813,-500.0,0.00020891,2]
[342139404,1731501044823,-500.0,0.00020891,2]
[342139405,1731501044834,-500.0,0.00020891,2]
[342139406,1731501044844,-500.0,0.00020891,2]
[342139407,1731501044853,-3753.92,0.00020891,2]
[342139408,1731501044863,-500.0,0.00020891,2]
[342139409,1731501044871,-210.1726774,0.00020891,2]
[342139410,1731501044882,-1248.06,0.00020891,2]
[342139411,1731501044892,-500.0,0.00020891,2]
[342139412,1731501044901,-609.96,0.00020891,2]
[342139413,1731501044910,-500.0,0.00020891,2]
[342139414,1731501044920,-627.50542959,0.00020892,2]
[342139415,1731501044929,-500.0,0.00020892,2]
[342139416,1731501044939,-500.0,0.00020892,2]
[342139417,1731501044949,-500.0,0.00020892,2]
[342139418,1731501044958,-500.0,0.00020892,2]
[342139419,1731501044968,-500.0,0.00020892,2]
[342139420,1731501044977,-500.0,0.00020892,2]
[342139421,1731501044986,-846.09,0.00020892,2]
[342139422,1731501044995,-500.0,0.00020892,2]
[342139423,1731501045004,-182.84041007,0.00020892,2]
[342139424,1731501045013,-500.0,0.00020892,2]
[342139425,1731501045022,-500.0,0.00020892,2]
[342139426,1731501045031,-500.0,0.00020892,2]
[342139427,1731501045040,-500.0,0.00020892,2]
[342139428,1731501045049,-500.0,0.00020892,2]
[342139429,1731501045059,-500.0,0.00020892,2]
[342139430,1731501045069,-500.0,0.00020892,2]
[342139431,1731501045078,-500.0,0.00020892,2]
[342139432,1731501045087,-507.3172506,0.00020892,2]
[342139433,1731501045096,-500.0,0.00020892,2]
[342139434,1731501045106,-500.0,0.00020892,2]
[342139435,1731501045115,-801.55,0.00020892,2]
[342139436,1731501045124,-500.0,0.00020892,2]
[342139437,1731501045135,-500.0,0.00020892,2]
[342139438,1731501045145,-500.0,0.00020892,2]
[342139439,1731501045153,-500.0,0.00020892,2]
[342139440,1731501045163,-500.0,0.00020892,2]
[342139441,1731501045172,-500.0,0.00020892,2]
[342139442,1731501045181,-301.92569401,0.00020892,2]
[342139443,1731501045190,-317.78926947,0.00020892,2]
[342139444,1731501045200,-500.0,0.00020892,2]
[342139445,1731501045208,-251.03961741,0.00020892,2]
[342139446,1731501045218,-500.0,0.00020892,2]
[342139448,1731501045227,-500.0,0.00020892,2]
[342139450,1731501045236,-500.0,0.00020892,2]
[342139451,1731501045245,-500.0,0.00020892,2]
[342139453,1731501045254,-500.0,0.00020892,2]
[342139455,1731501045263,-500.0,0.00020892,2]
[342139457,1731501045272,-500.0,0.00020892,2]
[342139458,1731501045281,-500.0,0.00020892,2]
[342139460,1731501045291,-500.0,0.00020892,2]
[342139462,1731501045300,-500.0,0.00020892,2]
[342139464,1731501045309,-500.0,0.00020892,2]
[342139466,1731501045318,-500.0,0.00020892,2]
[342139468,1731501045327,-816.38,0.00020892,2]
[342139469,1731501045337,-500.0,0.00020892,2]
[342139470,1731501045346,-500.0,0.00020892,2]
[342139471,1731501045355,-500.0,0.00020892,2]
[342139472,1731501045364,-275.27913372,0.00020892,2]
[342139473,1731501045373,-500.0,0.00020892,2]
[342139474,1731501045386,-365.84300104,0.00020892,2]
[342139476,1731501045395,-500.0,0.00020892,2]
[342139477,1731501045404,-531.97,0.00020892,2]
[342139478,1731501045413,-975.72,0.00020892,2]
[342139479,1731501045422,-162.73652262,0.00020893,2]
[342139480,1731501045431,-226.74957335,0.00020893,2]
[342139482,1731501045440,-500.0,0.00020893,2]
[342139484,1731501045449,-500.0,0.00020893,2]
[342139485,1731501045459,-500.0,0.00020893,2]
[342139486,1731501045467,-696.31,0.00020893,2]
[342139487,1731501045477,-720.52,0.00020893,2]
[342139488,1731501045487,-500.0,0.00020893,2]
[342139489,1731501045496,-500.0,0.00020893,2]
[342139490,1731501045506,-500.0,0.00020893,2]
[342139491,1731501045516,-500.0,0.00020893,2]
[342139492,1731501045525,-500.0,0.00020893,2]
[342139494,1731501045535,-500.0,0.00020893,2]
[342139496,1731501045544,-500.0,0.00020893,2]
[342139497,1731501045553,-500.0,0.00020893,2]
[342139498,1731501045563,-500.0,0.00020893,2]
[342139499,1731501045572,-500.0,0.00020893,2]
[342139500,1731501045580,-500.0,0.00020893,2]
[342139501,1731501045590,-500.0,0.00020893,2]
[342139502,1731501045599,-500.0,0.00020893,2]
[342139503,1731501045608,-1084.02,0.00020893,2]
[342139504,1731501045617,-173.18,0.000211,2]
[342139505,1731501045627,-500.0,0.000211,2]
[342139506,1731501045640,-233.542348,0.00021142,2]
[342139507,1731501045649,-380.464927,0.00021142,2]
[342139508,1731501045658,-153.739735,0.00021142,2]
[342139509,1731501045667,-423.68925,0.00021142,2]
[342139510,1731501045677,-380.464927,0.00021142,2]
[342139511,1731501045686,-869.82,0.00021164,2]
[342139512,1731501045696,-602.09,0.00021164,2]
[342139513,1731501045706,-500.0,0.00021165,2]
[342139514,1731501045716,-500.0,0.00021165,2]
[342139515,1731501045726,-500.0,0.00021165,2]
[342139517,1731501045735,-535.14,0.00021165,2]
[342139519,1731501045746,-500.0,0.00021165,2]
[342139520,1731501045759,-500.0,0.00021165,2]
[342139521,1731501045769,-1928.95,0.00021165,2]
[342139522,1731501045778,-500.0,0.00021165,2]
[342139523,1731501045787,-500.0,0.00021165,2]
[342139524,1731501045796,-500.0,0.00021165,2]
[342139525,1731501045805,-647.32,0.00021165,2]
[342139526,1731501045815,-500.0,0.00021165,2]
[342139527,1731501045826,-500.0,0.00021165,2]
[342139528,1731501045836,-500.0,0.00021165,2]
[342139529,1731501045845,-500.0,0.00021165,2]
[342139530,1731501045855,-500.0,0.00021165,2]
[342139531,1731501045865,-500.0,0.00021165,2]
[342139532,1731501045875,-500.0,0.00021165,2]
[342139533,1731501045886,-500.0,0.00021165,2]
[342139534,1731501045895,-1264.78,0.00021165,2]
[342139535,1731501045904,-500.0,0.00021165,2]
[342139536,1731501045914,-500.0,0.00021165,2]
[342139537,1731501045923,-500.0,0.00021165,2]
[342139539,1731501045933,-500.0,0.00021165,2]
[342139541,1731501045943,-500.0,0.00021165,2]
[342139542,1731501045954,-500.5762635,0.00021165,2]
[342139543,1731501045963,-500.0,0.00021165,2]
[342139544,1731501045973,-500.0,0.00021165,2]
[342139545,1731501045983,-500.0,0.00021165,2]
[342139547,1731501045992,-500.0,0.00021165,2]
[342139548,1731501046003,-3753.92,0.00021165,2]
[342139549,1731501046012,-500.0,0.00021165,2]
[342139550,1731501046022,-1248.06,0.00021165,2]
[342139551,1731501046032,-500.0,0.00021165,2]
[342139552,1731501046042,-609.96,0.00021165,2]
[342139553,1731501046052,-500.0,0.00021165,2]
[342139554,1731501046061,-500.0,0.00021166,2]
[342139555,1731501046070,-500.0,0.00021166,2]
[342139556,1731501046079,-500.0,0.00021166,2]
[342139557,1731501046088,-500.0,0.00021166,2]
[342139558,1731501046097,-500.0,0.00021166,2]
[342139559,1731501046106,-500.0,0.00021166,2]
[342139560,1731501046115,-846.09,0.00021166,2]
[342139561,1731501046125,-500.0,0.00021166,2]
[342139562,1731501046136,-500.0,0.00021166,2]
[342139563,1731501046145,-500.0,0.00021166,2]
[342139564,1731501046154,-182.9048633,0.00021166,2]
[342139565,1731501046162,-500.0,0.00021166,2]
[342139566,1731501046172,-500.0,0.00021166,2]
[342139567,1731501046181,-500.0,0.00021166,2]
[342139568,1731501046191,-500.0,0.00021166,2]
[342139569,1731501046199,-500.0,0.00021166,2]
[342139570,1731501046208,-500.0,0.00021166,2]
[342139571,1731501046218,-500.0,0.00021166,2]
[342139572,1731501046227,-801.55,0.00021166,2]
[342139573,1731501046236,-500.0,0.00021166,2]
[342139574,1731501046245,-500.0,0.00021166,2]
[342139575,1731501046254,-205.07257207,0.00021166,2]
[342139576,1731501046263,-500.0,0.00021166,2]
[342139577,1731501046272,-500.0,0.00021166,2]
[342139578,1731501046281,-500.0,0.00021166,2]
[342139579,1731501046290,-500.0,0.00021166,2]
[342139580,1731501046300,-500.0,0.00021166,2]
[342139581,1731501046310,-500.0,0.00021166,2]
[342139582,1731501046319,-500.0,0.00021166,2]
[342139583,1731501046330,-500.0,0.00021166,2]
[342139584,1731501046340,-500.0,0.00021166,2]
[342139585,1731501046350,-500.0,0.00021166,2]
[342139586,1731501046361,-500.0,0.00021166,2]
[342139587,1731501046372,-500.0,0.00021166,2]
[342139588,1731501046384,-500.0,0.00021166,2]
[342139589,1731501046394,-500.0,0.00021166,2]
[342139590,1731501046404,-500.0,0.00021166,2]
[342139591,1731501046414,-508.6211709,0.00021166,2]
[342139592,1731501046423,-816.38,0.00021166,2]
[342139593,1731501046433,-500.0,0.00021166,2]
[342139594,1731501046442,-287.53621913,0.00021166,2]
[342139595,1731501046452,-500.0,0.00021166,2]
[342139596,1731501046461,-500.0,0.00021166,2]
[342139597,1731501046472,-500.0,0.00021166,2]
[342139598,1731501046481,-531.97,0.00021166,2]
[342139599,1731501046490,-975.72,0.00021166,2]
[342139600,1731501046500,-500.0,0.00021167,2]
[342139601,1731501046510,-500.0,0.00021167,2]
[342139602,1731501046519,-500.0,0.00021167,2]
[342139603,1731501046529,-696.31,0.00021167,2]
[342139604,1731501046539,-720.52,0.00021167,2]
[342139605,1731501046549,-384.78412568,0.00021167,2]
[342139606,1731501046559,-213.27788814,0.00021167,2]
[342139607,1731501046570,-500.0,0.00021167,2]
[342139608,1731501046580,-500.0,0.00021167,2]
[342139609,1731501046589,-500.0,0.00021167,2]
[342139610,1731501046598,-500.0,0.00021167,2]
[342139611,1731501046607,-500.0,0.00021167,2]
[342139612,1731501046616,-500.0,0.00021167,2]
[342139613,1731501046625,-500.0,0.00021167,2]
[342139614,1731501046635,-500.0,0.00021167,2]
[342139615,1731501046645,-500.0,0.00021167,2]
[342139616,1731501046654,-500.0,0.00021167,2]
[342139617,1731501046664,-500.0,0.00021167,2]
[342139618,1731501046674,-1084.02,0.00021167,2]
[342139619,1731501046684,-1235.04757232,0.00021193,2]
[342139620,1731501046694,-1115.38407278,0.00021221,2]
[342139621,1731501046704,-1000.0,0.00021221,2]
[342139622,1731501046714,-500.91019022,0.00021221,2]
[342139623,1731501046724,-470.60498186,0.00021373,2]
[342139624,1731501046734,-233.542348,0.00021403,2]
[342139625,1731501046744,-380.464927,0.00021403,2]
[342139626,1731501046758,-153.739735,0.00021403,2]
[342139627,1731501046769,-423.68925,0.00021403,2]
[342139628,1731501046780,-380.464927,0.00021403,2]
[342139629,1731501046790,-869.82,0.00021438,2]
[342139630,1731501046801,-602.09,0.00021438,2]
[342139631,1731501046810,-500.0,0.00021439,2]
[342139632,1731501046822,-500.0,0.00021439,2]
[342139633,1731501046831,-500.0,0.00021439,2]
[342139634,1731501046841,-535.14,0.00021439,2]
[342139635,1731501046851,-362.5542987,0.00021439,2]
[342139636,1731501046861,-500.0,0.00021439,2]
[342139637,1731501046871,-1928.95,0.00021439,2]
[342139638,1731501046882,-500.0,0.00021439,2]
[342139639,1731501046891,-284.81779336,0.00021439,2]
[342139640,1731501046901,-500.0,0.00021439,2]
[342139641,1731501046912,-647.32,0.00021439,2]
[342139642,1731501046922,-500.0,0.00021439,2]
[342139643,1731501046933,-500.0,0.00021439,2]
[342139644,1731501046943,-500.0,0.00021439,2]
[342139645,1731501046953,-500.0,0.00021439,2]
[342139646,1731501046963,-500.0,0.00021439,2]
[342139647,1731501046973,-500.0,0.00021439,2]
[342139648,1731501046983,-500.0,0.00021439,2]
[342139649,1731501046993,-500.0,0.00021439,2]
[342139650,1731501047002,-1264.78,0.00021439,2]
[342139651,1731501047012,-500.0,0.00021439,2]
[342139652,1731501047022,-500.0,0.00021439,2]
[342139653,1731501047033,-500.0,0.00021439,2]
[342139654,1731501047043,-500.0,0.00021439,2]
[342139655,1731501047053,-500.0,0.00021439,2]
[342139656,1731501047063,-500.0,0.00021439,2]
[342139657,1731501047073,-500.0,0.00021439,2]
[342139658,1731501047083,-502.28923209,0.00021439,2]
[342139659,1731501047093,-500.0,0.00021439,2]
[342139660,1731501047103,-3753.92,0.00021439,2]
[342139661,1731501047113,-500.0,0.00021439,2]
[342139662,1731501047123,-1248.06,0.00021439,2]
[342139663,1731501047134,-500.0,0.00021439,2]
[342139664,1731501047143,-609.96,0.00021439,2]
[342139665,1731501047153,-500.0,0.00021439,2]
[342139666,1731501047162,-320.29628,0.0002144,2]
[342139667,1731501047172,-500.0,0.0002144,2]
[342139668,1731501047181,-500.0,0.0002144,2]
[342139669,1731501047191,-602.08057889,0.0002144,2]
[342139670,1731501047200,-500.0,0.0002144,2]
[342139671,1731501047210,-500.0,0.0002144,2]
[342139672,1731501047220,-846.09,0.0002144,2]
[342139673,1731501047229,-500.0,0.0002144,2]
[342139674,1731501047239,-500.0,0.0002144,2]
[342139675,1731501047249,-500.0,0.0002144,2]
[342139676,1731501047259,-500.0,0.0002144,2]
[342139677,1731501047268,-500.0,0.0002144,2]
[342139678,1731501047278,-500.0,0.0002144,2]
[342139679,1731501047287,-500.0,0.0002144,2]
[342139680,1731501047297,-500.0,0.0002144,2]
[342139681,1731501047306,-500.0,0.0002144,2]
[342139682,1731501047316,-500.0,0.0002144,2]
[342139683,1731501047325,-801.55,0.0002144,2]
[342139684,1731501047335,-160.90441581,0.0002144,2]
[342139685,1731501047344,-500.0,0.0002144,2]
[342139686,1731501047354,-500.0,0.0002144,2]
[342139687,1731501047363,-500.0,0.0002144,2]
[342139688,1731501047373,-439.07090456,0.0002144,2]
[342139689,1731501047384,-500.0,0.0002144,2]
[342139690,1731501047393,-500.0,0.0002144,2]
[342139691,1731501047403,-500.0,0.0002144,2]
[342139692,1731501047412,-500.0,0.0002144,2]
[342139693,1731501047422,-216.20279859,0.0002144,2]
[342139694,1731501047431,-500.0,0.0002144,2]
[342139695,1731501047440,-500.0,0.0002144,2]
[342139696,1731501047450,-500.0,0.0002144,2]
[342139697,1731501047459,-500.0,0.0002144,2]
[342139698,1731501047469,-500.0,0.0002144,2]
[342139699,1731501047478,-500.0,0.0002144,2]
[342139700,1731501047488,-500.0,0.0002144,2]
[342139701,1731501047497,-816.38,0.0002144,2]
[342139702,1731501047507,-500.0,0.0002144,2]
[342139703,1731501047517,-500.0,0.0002144,2]
[342139704,1731501047527,-500.0,0.0002144,2]
[342139705,1731501047536,-500.0,0.0002144,2]
[342139706,1731501047546,-531.97,0.0002144,2]
[342139707,1731501047556,-975.72,0.0002144,2]
[342139708,1731501047565,-500.0,0.00021441,2]
[342139709,1731501047575,-500.0,0.00021441,2]
[342139710,1731501047585,-500.0,0.00021441,2]
[342139711,1731501047595,-696.31,0.00021441,2]
[342139712,1731501047605,-720.52,0.00021441,2]
[342139713,1731501047614,-500.0,0.00021441,2]
[342139714,1731501047624,-458.20691837,0.00021441,2]
[342139715,1731501047635,-500.0,0.00021441,2]
[342139716,1731501047645,-500.0,0.00021441,2]
[342139717,1731501047655,-500.0,0.00021441,2]
[342139718,1731501047664,-500.0,0.00021441,2]
[342139719,1731501047674,-500.0,0.00021441,2]
[342139720,1731501047683,-500.0,0.00021441,2]
[342139721,1731501047693,-500.0,0.00021441,2]
[342139722,1731501047703,-308.77120958,0.00021441,2]
[342139723,1731501047712,-500.0,0.00021441,2]
[342139724,1731501047722,-1084.02,0.00021441,2]
[342139725,1731501047732,-6000.0,0.00021615,2]
[342139726,1731501047742,-233.542348,0.00021664,2]
[342139727,1731501047755,-380.464927,0.00021664,2]
[342139728,1731501047764,-153.739735,0.00021664,2]
[342139729,1731501047774,-423.68925,0.00021664,2]
[342139730,1731501047784,-380.464927,0.00021664,2]
[342139731,1731501047794,-869.82,0.00021712,2]
[342139732,1731501047803,-602.09,0.00021712,2]
[342139733,1731501047812,-500.0,0.00021713,2]
[342139734,1731501047822,-500.0,0.00021713,2]
[342139735,1731501047833,-500.0,0.00021713,2]
[342139736,1731501047844,-535.14,0.00021713,2]
[342139737,1731501047854,-500.0,0.00021713,2]
[342139738,1731501047863,-1928.95,0.00021713,2]
[342139739,1731501047873,-500.0,0.00021713,2]
[342139740,1731501047884,-500.0,0.00021713,2]
[342139741,1731501047893,-647.32,0.00021713,2]
[342139742,1731501047903,-500.0,0.00021713,2]
[342139743,1731501047912,-500.0,0.00021713,2]
[342139744,1731501047922,-500.0,0.00021713,2]
[342139745,1731501047931,-500.0,0.00021713,2]
[342139746,1731501047941,-537.93185951,0.00021713,2]
[342139747,1731501047950,-460.88643177,0.00021713,2]
[342139748,1731501047960,-368.44345195,0.00021713,2]
[342139749,1731501047970,-500.0,0.00021713,2]
[342139750,1731501047980,-1264.78,0.00021713,2]
[342139751,1731501047989,-500.0,0.00021713,2]
[342139752,1731501047999,-500.0,0.00021713,2]
[342139753,1731501048008,-635.82788951,0.00021713,2]
[342139754,1731501048018,-500.0,0.00021713,2]
[342139755,1731501048028,-500.0,0.00021713,2]
[342139756,1731501048038,-500.0,0.00021713,2]
[342139757,1731501048047,-507.24821054,0.00021713,2]
[342139758,1731501048057,-500.0,0.00021713,2]
[342139759,1731501048066,-3753.92,0.00021713,2]
[342139760,1731501048076,-500.0,0.00021713,2]
[342139761,1731501048085,-1248.06,0.00021713,2]
[342139762,1731501048094,-500.0,0.00021713,2]
[342139763,1731501048104,-609.96,0.00021713,2]
[342139764,1731501048114,-500.0,0.00021713,2]
[342139765,1731501048124,-500.0,0.00021714,2]
[342139766,1731501048135,-500.0,0.00021714,2]
[342139767,1731501048145,-500.0,0.00021714,2]
[342139768,1731501048155,-500.0,0.00021714,2]
[342139769,1731501048165,-846.09,0.00021714,2]
[342139770,1731501048174,-500.0,0.00021714,2]
[342139771,1731501048184,-500.0,0.00021714,2]
[342139772,1731501048193,-500.0,0.00021714,2]
[342139773,1731501048203,-500.0,0.00021714,2]
[342139774,1731501048213,-500.0,0.00021714,2]
[342139775,1731501048223,-500.0,0.00021714,2]
[342139776,1731501048232,-500.0,0.00021714,2]
[342139777,1731501048242,-500.0,0.00021714,2]
[342139778,1731501048251,-500.0,0.00021714,2]
[342139779,1731501048261,-500.0,0.00021714,2]
[342139780,1731501048272,-801.55,0.00021714,2]
[342139781,1731501048282,-500.0,0.00021714,2]
[342139782,1731501048291,-500.0,0.00021714,2]
[342139783,1731501048301,-500.0,0.00021714,2]
[342139784,1731501048311,-500.0,0.00021714,2]
[342139785,1731501048321,-500.0,0.00021714,2]
[342139786,1731501048333,-500.0,0.00021714,2]
[342139787,1731501048343,-177.07292649,0.00021714,2]
[342139788,1731501048352,-500.0,0.00021714,2]
[342139789,1731501048362,-500.0,0.00021714,2]
[342139790,1731501048372,-500.0,0.00021714,2]
[342139791,1731501048384,-500.0,0.00021714,2]
[342139792,1731501048395,-500.0,0.00021714,2]
[342139793,1731501048405,-500.0,0.00021714,2]
[342139794,1731501048415,-500.0,0.00021714,2]
[342139795,1731501048425,-816.38,0.00021714,2]
[342139796,1731501048435,-500.0,0.00021714,2]
[342139797,1731501048445,-500.0,0.00021714,2]
[342139798,1731501048455,-500.0,0.00021714,2]
[342139800,1731501048464,-500.0,0.00021714,2]
[342139802,1731501048474,-531.97,0.00021714,2]
[342139804,1731501048484,-975.72,0.00021714,2]
[342139806,1731501048494,-500.0,0.00021715,2]
[342139809,1731501048504,-435.4472234,0.00021715,2]
[342139811,1731501048514,-500.0,0.00021715,2]
[342139813,1731501048524,-696.31,0.00021715,2]
[342139815,1731501048534,-720.52,0.00021715,2]
[342139817,1731501048544,-500.0,0.00021715,2]
[342139819,1731501048554,-500.0,0.00021715,2]
[342139821,1731501048563,-500.0,0.00021715,2]
[342139823,1731501048573,-500.0,0.00021715,2]
[342139825,1731501048583,-500.0,0.00021715,2]
[342139827,1731501048592,-500.0,0.00021715,2]
[342139829,1731501048602,-345.78075158,0.00021715,2]
[342139831,1731501048612,-500.0,0.00021715,2]
[342139833,1731501048622,-500.0,0.00021715,2]
[342139834,1731501048632,-1084.02,0.00021715,2]
[342139835,1731501048642,-500.0,0.00021798,2]
[342139836,1731501048652,-500.0,0.00021798,2]
[342139837,1731501048662,-322.53100574,0.00021798,2]
[342139838,1731501048672,-261.43829145,0.00021798,2]
[342139839,1731501048682,-50654.56240621,0.000218,10]